bitfinex-derivatives/quotes_BTCF0:USTF0_20230402
["timestamp","ask_amount","ask_price","bid_price","bid_amount"]
[1680438057574,0.054,28347.0,28342.0,0.36418627]
[1680438059166,0.004,28347.0,28342.0,0.36418627]
[1680438059568,0.004,28347.0,28342.0,0.66488627]
[1680438059970,0.004,28347.0,28345.0,0.3007]
[1680438065373,0.004,28347.0,28342.0,0.36418627]
[1680438065669,0.004,28347.0,28345.0,0.3007]
[1680438066377,0.004,28347.0,28342.0,0.36418627]
[1680438066980,0.004,28347.0,28342.0,0.3007]
[1680438067777,0.05,28346.0,28342.0,0.3007]
[1680438067978,0.05,28346.0,28342.0,0.36418627]
[1680438069076,0.05,28346.0,28342.0,0.3007]
[1680438069580,0.05,28346.0,28342.0,0.3037]
[1680438073385,0.3007,28345.0,28342.0,0.003]
[1680438073578,0.05,28344.0,28342.0,0.003]
[1680438073979,0.05,28344.0,28338.0,0.06348627]
[1680438075684,0.051,28344.0,28342.0,0.013]
[1680438076076,0.05,28344.0,28337.0,0.11348627]
[1680438076275,0.074,28344.0,28338.0,0.001]
[1680438076677,0.074,28344.0,28342.0,0.001]
[1680438077083,0.074,28344.0,28338.0,0.001]
[1680438077473,0.3007,28342.0,28338.0,0.001]
[1680438077678,0.05,28341.0,28338.0,0.001]
[1680438078477,0.05,28341.0,28336.0,0.36418627]
[1680438079085,0.054,28341.0,28336.0,0.36418627]
[1680438081878,0.054,28341.0,28336.0,0.3007]
[1680438098601,0.004,28341.0,28336.0,0.3007]
[1680438100405,0.054,28341.0,28336.0,0.3007]
[1680438102307,0.054,28341.0,28336.0,0.36418627]
[1680438103399,0.054,28341.0,28336.0,0.3007]
[1680438103801,0.054,28341.0,28336.0,0.36418627]
[1680438104499,0.054,28341.0,28338.0,0.3007]
[1680438107303,0.05,28341.0,28338.0,0.3007]
[1680438107503,0.054,28341.0,28338.0,0.3007]
[1680438115720,0.054,28341.0,28338.0,0.36418627]
[1680438115922,0.077,28341.0,28338.0,0.36518627]
[1680438116715,0.073,28341.0,28338.0,0.36518627]
[1680438117616,0.06,28341.0,28338.0,0.36518627]
[1680438118818,0.067,28341.0,28338.0,0.36518627]
[1680438119218,0.05,28341.0,28338.0,0.36418627]
[1680438119423,0.06,28341.0,28338.0,0.36518627]
[1680438119821,0.073,28341.0,28338.0,0.36518627]
[1680438120424,0.06,28341.0,28338.0,0.36518627]
[1680438121715,0.06,28341.0,28338.0,0.06448627]
[1680438121716,0.073,28341.0,28338.0,0.06448627]
[1680438122227,0.05994,28341.0,28338.0,0.06448627]
[1680438123030,0.05994,28341.0,28338.0,0.001]
[1680438129825,0.3007,28339.0,28338.0,0.001]
[1680438130818,0.3007,28339.0,28335.0,0.36418627]
[1680438131027,0.05,28338.0,28335.0,0.36418627]
[1680438132431,0.05,28338.0,28335.0,0.36718627]
[1680438133734,0.067,28338.0,28335.0,0.36518627]
[1680438133938,0.05,28338.0,28335.0,0.36418627]
[1680438134130,0.06,28338.0,28335.0,0.36518627]
[1680438135526,0.06,28338.0,28335.0,0.3017]
[1680438135732,0.06,28338.0,28335.0,0.36518627]
[1680438136131,0.06,28338.0,28335.0,0.3017]
[1680438136328,0.06,28338.0,28335.0,0.36518627]
[1680438136532,0.06,28338.0,28335.0,0.3017]
[1680438141538,0.06,28338.0,28335.0,0.001]
[1680438141840,0.3007,28336.0,28335.0,0.001]
[1680438143145,0.3007,28336.0,28335.0,0.003]
[1680438144146,0.05,28335.0,28330.0,0.06348627]
[1680438145640,0.051,28335.0,28330.0,0.06948627]
[1680438146048,0.05,28335.0,28330.0,0.06348627]
[1680438146245,0.061,28335.0,28330.0,0.06448627]
[1680438147448,0.3007,28333.0,28330.0,0.06448627]
[1680438147642,0.05,28332.0,28330.0,0.06448627]
[1680438147842,0.05006229,28332.0,28330.0,0.06448627]
[1680438149051,0.05106229,28332.0,28330.0,0.06948627]
[1680438149450,0.05106229,28332.0,28330.0,0.006]
[1680438151649,0.3523,28331.0,28325.0,0.08442102]
[1680438151954,0.3523,28331.0,28319.0,0.16881446]
[1680438151955,0.6014,28328.0,28322.0,0.06337653]
[1680438152146,0.05,28327.0,28321.0,0.36407653]
[1680438152348,0.05,28327.0,28322.0,0.05]
[1680438152547,0.05,28327.0,28325.0,0.001]
[1680438153050,0.003,28327.0,28325.0,0.05]
[1680438153448,0.003,28327.0,28325.0,0.051]
[1680438156251,0.003,28327.0,28325.0,0.001]
[1680438156452,0.003,28327.0,28325.0,0.051]
[1680438158452,0.00024919,28326.0,28325.0,0.051]
[1680438159044,0.00024919,28326.0,28325.0,0.001]
[1680438159250,0.00024919,28326.0,28325.0,0.051]
[1680438159450,0.00024919,28326.0,28325.0,0.05]
[1680438159655,0.00324919,28326.0,28325.0,0.051]
[1680438159856,0.00324919,28326.0,28325.0,0.001]
[1680438175968,0.003,28326.0,28325.0,0.001]
[1680438176674,0.05,28334.0,28326.0,0.05]
[1680438176869,3.77,28335.0,28331.0,0.3007]
[1680438177465,0.05,28334.0,28331.0,0.3007]
[1680438178067,3.77,28335.0,28331.0,0.3007]
[1680438178270,1.1003,28338.0,28331.0,0.3007]
[1680438178468,0.05,28337.0,28334.0,0.3007]
[1680438178866,3.82,28337.0,28334.0,0.3007]
[1680438179571,0.011,28335.0,28334.0,0.3007]
[1680438179973,3.844,28337.0,28334.0,0.3007]
[1680438180376,3.82,28337.0,28335.0,0.3007]
[1680438180573,0.3007,28338.0,28335.0,0.3507]
[1680438180768,0.3007,28338.0,28335.0,0.3007]
[1680438180968,0.024,28337.0,28335.0,0.3007]
[1680438181178,0.074,28337.0,28335.0,0.3007]
[1680438181372,0.024,28337.0,28335.0,0.3007]
[1680438182273,0.024,28337.0,28336.0,0.05]
[1680438182472,0.05,28339.0,28336.0,0.05]
[1680438182773,0.027,28338.0,28336.0,0.05]
[1680438182973,0.004,28337.0,28336.0,0.05]
[1680438183279,0.004,28337.0,28335.0,0.3007]
[1680438183670,0.018,28339.0,28335.0,0.3007]
[1680438183871,0.018,28339.0,28331.0,0.3007]
[1680438184079,0.018,28339.0,28332.0,0.05]
[1680438184372,0.004,28337.0,28332.0,0.05]
[1680438185377,0.004,28337.0,28334.0,0.3007]
[1680438185574,0.018,28339.0,28334.0,0.3007]
[1680438185975,0.004,28337.0,28334.0,0.3007]
[1680438186478,0.027,28339.0,28334.0,0.3007]
[1680438186682,0.05,28338.0,28334.0,0.3007]
[1680438187074,0.004,28337.0,28334.0,0.3007]
[1680438188880,0.074,28338.0,28334.0,0.3007]
[1680438189281,0.004,28337.0,28334.0,0.3007]
[1680438189974,0.054,28338.0,28334.0,0.3007]
[1680438190580,0.004,28337.0,28334.0,0.3007]
[1680438191877,0.061,28338.0,28334.0,0.3007]
[1680438192780,0.004,28337.0,28334.0,0.3007]
[1680438193183,0.05,28338.0,28334.0,0.3007]
[1680438193377,0.061,28338.0,28334.0,0.3007]
[1680438193882,0.004,28337.0,28334.0,0.3007]
[1680438195286,0.3617,28338.0,28334.0,0.3007]
[1680438195687,0.004,28337.0,28334.0,0.3007]
[1680438196681,0.3617,28338.0,28334.0,0.3007]
[1680438197883,0.004,28337.0,28334.0,0.3007]
[1680438198288,0.3617,28338.0,28334.0,0.3007]
[1680438198878,0.004,28337.0,28334.0,0.3007]
[1680438199280,0.3507,28338.0,28334.0,0.3007]
[1680438199484,0.3617,28338.0,28334.0,0.3007]
[1680438199984,0.004,28337.0,28334.0,0.3007]
[1680438200286,0.004,28337.0,28331.0,0.3007]
[1680438200881,0.3507,28338.0,28331.0,0.3007]
[1680438201080,0.3617,28338.0,28331.0,0.3007]
[1680438201584,0.004,28337.0,28331.0,0.3007]
[1680438201785,0.3507,28338.0,28331.0,0.3007]
[1680438201986,0.3617,28338.0,28331.0,0.3007]
[1680438202489,0.004,28337.0,28331.0,0.3007]
[1680438203991,0.3617,28338.0,28331.0,0.3007]
[1680438204393,0.3507,28338.0,28331.0,0.3037]
[1680438204893,0.3547,28338.0,28331.0,0.3007]
[1680438205391,0.3507,28338.0,28331.0,0.3007]
[1680438205596,0.3617,28338.0,28331.0,0.3007]
[1680438217299,0.3617,28338.0,28331.0,0.36407653]
[1680438221003,0.3777,28338.0,28332.0,0.3007]
[1680438221306,0.3777,28338.0,28333.0,0.05]
[1680438222501,0.3507,28338.0,28333.0,0.05]
[1680438222707,0.3777,28338.0,28332.0,0.36407653]
[1680438224807,0.3507,28338.0,28332.0,0.36407653]
[1680438225106,0.3777,28338.0,28332.0,0.36407653]
[1680438225302,0.3777,28338.0,28333.0,0.06337653]
[1680438225506,0.3777,28338.0,28334.0,0.05]
[1680438225705,0.3747,28338.0,28334.0,0.05]
[1680438226006,0.3247,28338.0,28335.0,0.3007]
[1680438227013,0.3247,28338.0,28333.0,0.11337653]
[1680438227407,0.3247,28338.0,28333.0,0.06337653]
[1680438227605,0.05,28337.0,28333.0,0.06337653]
[1680438228708,0.061,28337.0,28333.0,0.06337653]
[1680438230413,0.011,28337.0,28333.0,0.11337653]
[1680438230709,0.011,28337.0,28333.0,0.05]
[1680438231211,0.061,28337.0,28332.0,0.3007]
[1680438235610,0.061,28337.0,28331.0,0.08442102]
[1680438238009,0.3007,28333.0,28331.0,0.08442102]
[1680438238314,0.05,28332.0,28329.0,0.3007]
[1680438238511,0.05006229,28332.0,28329.0,0.3007]
[1680438239307,0.05206229,28332.0,28329.0,0.3037]
[1680438241116,0.05206229,28332.0,28329.0,0.30350536]
[1680438242220,0.05006229,28332.0,28329.0,0.30050536]
[1680438242416,0.07706229,28332.0,28329.0,0.30050536]
[1680438242923,0.07406229,28332.0,28329.0,0.30050536]
[1680438244122,0.07406229,28332.0,28326.0,6e-05]
[1680438245715,0.07406229,28332.0,28329.0,6e-05]
[1680438248524,0.3007,28330.0,28329.0,6e-05]
[1680438249022,0.30082458,28330.0,28329.0,6e-05]
[1680438249626,0.31182458,28330.0,28329.0,6e-05]
[1680438254419,0.4023,28329.0,28322.0,0.02511365]
[1680438254625,0.4023,28329.0,28320.0,0.10567505]
[1680438254626,0.9537,28323.0,28316.0,0.43527505]
[1680438254820,0.3007,28319.0,28313.0,0.15567505]
[1680438255025,0.05,28318.0,28313.0,0.05]
[1680438255224,0.05,28318.0,28316.0,0.05]
[1680438255421,0.3007,28319.0,28316.0,0.05]
[1680438255827,0.3007,28319.0,28313.0,0.05]
[1680438257423,0.003,28319.0,28313.0,0.05]
[1680438258220,0.053,28319.0,28313.0,0.05]
[1680438258424,0.003,28319.0,28313.0,0.05]
[1680438261729,0.003,28319.0,28312.0,0.3007]
[1680438261939,0.3007,28317.0,28307.0,0.3007]
[1680438262229,0.00049853,28318.0,28313.0,0.3007]
[1680438262422,0.00049853,28318.0,28314.0,0.05]
[1680438263733,0.003,28317.0,28314.0,0.05]
[1680438263927,0.00352971,28317.0,28314.0,0.05]
[1680438264523,0.00052971,28317.0,28314.0,0.05]
[1680438264935,0.00352971,28317.0,28316.0,0.3007]
[1680438273036,0.003,28317.0,28316.0,0.3007]
[1680438273931,0.05,28324.0,28317.0,0.05]
[1680438274131,0.00034268,28323.0,28320.0,0.05]
[1680438274532,0.3007,28324.0,28320.0,0.05]
[1680438275339,0.05,28326.0,28320.0,0.05]
[1680438275539,0.05,28326.0,28322.0,0.3007]
[1680438275741,0.05,28326.0,28323.0,0.05]
[1680438276131,0.05,28326.0,28322.0,0.3007]
[1680438276329,0.066,28326.0,28322.0,0.3007]
[1680438276729,0.066,28326.0,28323.0,0.001]
[1680438277037,0.066,28326.0,28323.0,0.051]
[1680438277232,0.066,28326.0,28323.0,0.05]
[1680438277636,0.016,28326.0,28323.0,0.05]
[1680438278141,0.00028035,28325.0,28323.0,0.05]
[1680438279538,0.01028035,28325.0,28323.0,0.05]
[1680438279832,0.7996,28330.0,28323.0,0.05]
[1680438280036,0.3007,28332.0,28330.0,0.05]
[1680438280440,0.3007,28332.0,28329.0,0.3007]
[1680438281141,0.3007,28332.0,28330.0,0.05]
[1680438282035,0.3167,28332.0,28330.0,0.051]
[1680438282645,0.3097,28332.0,28330.0,0.051]
[1680438283339,0.3007,28332.0,28330.0,0.05]
[1680438283540,0.3027,28332.0,28330.0,0.05]
[1680438283938,0.002,28332.0,28330.0,0.05]
[1680438285946,0.3007,28337.0,28330.0,0.3507]
[1680438286148,0.3007,28337.0,28334.0,0.3007]
[1680438286447,0.3007,28337.0,28335.0,0.05]
[1680438286834,0.3237,28337.0,28334.0,0.3007]
[1680438288148,0.3237,28337.0,28335.0,0.001]
[1680438288548,0.3157,28337.0,28334.0,0.3017]
[1680438288939,0.3157,28337.0,28335.0,0.05]
[1680438289246,0.3157,28337.0,28335.0,0.051]
[1680438289247,0.3097,28337.0,28335.0,0.051]
[1680438289440,0.3007,28337.0,28335.0,0.05]
[1680438289635,0.3157,28337.0,28335.0,0.05]
[1680438290146,0.3157,28337.0,28334.0,0.3017]
[1680438291046,0.3007,28337.0,28335.0,0.05]
[1680438291246,0.3157,28337.0,28335.0,0.051]
[1680438291642,0.3166,28341.0,28336.0,0.00182225]
[1680438291841,0.3007,28342.0,28339.0,0.3007]
[1680438292045,0.3007,28342.0,28340.0,0.05]
[1680438292843,0.3097,28342.0,28340.0,0.05]
[1680438293244,0.3097,28342.0,28341.0,0.0029318]
[1680438293245,0.3007,28342.0,28341.0,0.0029318]
[1680438293444,0.3077,28342.0,28340.0,0.051]
[1680438294439,0.007,28342.0,28340.0,0.051]
[1680438294846,0.05,28348.0,28340.0,0.05]
[1680438295149,0.05,28348.0,28342.0,0.3007]
[1680438295949,0.059,28348.0,28342.0,0.3007]
[1680438296245,0.05,28348.0,28342.0,0.3007]
[1680438296453,0.059,28348.0,28342.0,0.3027]
[1680438297151,0.059,28348.0,28343.0,0.0034193]
[1680438297352,0.059,28348.0,28343.0,0.0534193]
[1680438297650,0.059,28348.0,28343.0,0.0034193]
[1680438297850,0.059,28348.0,28342.0,0.3027]
[1680438298444,0.059,28348.0,28343.0,0.002]
[1680438298850,0.059,28348.0,28342.0,0.3027]
[1680438299252,0.05,28348.0,28342.0,0.3007]
[1680438299552,0.059,28348.0,28343.0,0.002]
[1680438299749,0.05,28348.0,28343.0,0.05]
[1680438299952,0.059,28348.0,28343.0,0.05]
[1680438300152,0.059,28348.0,28342.0,0.3027]
[1680438300848,0.059,28348.0,28342.0,0.002]
[1680438301152,0.059,28348.0,28343.0,0.002]
[1680438301354,0.05,28348.0,28340.0,0.05]
[1680438301652,0.059,28348.0,28342.0,0.002]
[1680438302052,0.059,28348.0,28343.0,0.002]
[1680438302449,0.05,28348.0,28342.0,0.002]
[1680438302650,0.3007,28346.0,28342.0,0.002]
[1680438302852,0.05,28345.0,28342.0,0.002]
[1680438303749,0.05,28345.0,28343.0,0.002]
[1680438304253,0.059,28345.0,28342.0,0.002]
[1680438304455,0.3007,28343.0,28342.0,0.002]
[1680438304758,0.3007,28343.0,28337.0,0.05]
[1680438305055,0.05,28342.0,28336.0,0.3007]
[1680438305352,0.3007,28339.0,28336.0,0.3007]
[1680438305546,0.05,28338.0,28336.0,0.3007]
[1680438306151,0.3007,28339.0,28337.0,0.00401529]
[1680438306351,0.3007,28339.0,28337.0,0.05401529]
[1680438306556,0.3007,28339.0,28337.0,0.00401529]
[1680438306951,0.3007,28339.0,28336.0,0.3067]
[1680438307146,0.05,28338.0,28337.0,0.026]
[1680438307446,0.05,28338.0,28337.0,0.02606]
[1680438308160,0.051,28338.0,28337.0,0.02706]
[1680438319765,0.6524,28338.0,28337.0,0.02706]
[1680438319965,0.6524,28338.0,28337.0,0.03009691]
[1680438320167,0.6524,28338.0,28337.0,0.02706]
[1680438324363,0.05,28337.0,28330.0,0.3155]
[1680438324562,0.05,28332.0,28327.0,0.3007]
[1680438324866,0.3007,28330.0,28327.0,0.3007]
[1680438325771,0.3007,28330.0,28327.0,0.3027]
[1680438326963,0.3037,28330.0,28327.0,0.3027]
[1680438328866,0.3047,28330.0,28327.0,0.3007]
[1680438329476,0.004,28330.0,28328.0,0.05]
[1680438330274,0.05,28332.0,28328.0,0.05]
[1680438330477,0.004,28330.0,28328.0,0.05]
[1680438332978,0.05,28332.0,28328.0,0.052]
[1680438333187,0.3007,28333.0,28328.0,0.052]
[1680438333378,0.05,28332.0,28328.0,0.052]
[1680438333873,0.06,28332.0,28328.0,0.05]
[1680438334187,0.01,28332.0,28328.0,0.05]
[1680438334679,0.06,28332.0,28328.0,0.05]
[1680438335180,0.01,28332.0,28328.0,0.05]
[1680438336080,0.06,28332.0,28328.0,0.05]
[1680438336278,0.054,28332.0,28328.0,0.05]
[1680438337080,0.004,28332.0,28328.0,0.05]
[1680438337482,0.004,28332.0,28330.0,0.3007]
[1680438337785,0.004,28332.0,28331.0,0.05]
[1680438338679,0.004,28332.0,28330.0,0.3007]
[1680438339075,0.05,28335.0,28331.0,0.002]
[1680438339385,0.05,28335.0,28331.0,0.052]
[1680438339584,0.05,28335.0,28330.0,0.3007]
[1680438339882,0.001,28332.0,28330.0,0.3027]
[1680438340180,0.06,28335.0,28330.0,0.3007]
[1680438341773,0.05,28335.0,28330.0,0.3027]
[1680438342186,0.067,28335.0,28330.0,0.3007]
[1680438342587,0.05,28335.0,28330.0,0.3007]
[1680438342783,0.067,28335.0,28330.0,0.3007]
[1680438345181,0.3007,28333.0,28330.0,0.3007]
[1680438345381,0.05,28332.0,28330.0,0.3007]
[1680438346185,0.05,28332.0,28330.0,0.3027]
[1680438346790,0.05,28332.0,28330.0,0.002]
[1680438348084,0.067,28332.0,28325.0,0.05]
[1680438348282,0.067,28332.0,28324.0,0.38504811]
[1680438348479,0.077,28332.0,28324.0,0.38504811]
[1680438349085,0.3007,28330.0,28324.0,0.38504811]
[1680438349284,0.05,28329.0,28324.0,0.38504811]
[1680438349684,0.05,28329.0,28324.0,0.3007]
[1680438349883,0.05,28329.0,28324.0,0.38504811]
[1680438352096,0.05,28329.0,28324.0,0.38704811]
[1680438354891,0.00018688,28328.0,28324.0,0.38704811]
[1680438355091,0.00018688,28328.0,28325.0,0.05]
[1680438356885,0.00018688,28328.0,28325.0,0.052]
[1680438357085,0.00118688,28328.0,28325.0,0.002]
[1680438357285,0.00118688,28328.0,28325.0,0.052]
[1680438359299,0.00118688,28328.0,28325.0,0.002]
[1680438364896,0.05,28326.0,28325.0,0.002]
[1680438365400,0.3007,28327.0,28325.0,0.002]
[1680438366295,0.00424919,28326.0,28324.0,0.38504811]
[1680438366496,0.05424919,28326.0,28324.0,0.38504811]
[1680438366692,0.00424919,28326.0,28324.0,0.38504811]
[1680438366899,0.00024919,28326.0,28324.0,0.38504811]
[1680438367301,0.00424919,28326.0,28324.0,0.38504811]
[1680438368405,0.00024919,28326.0,28324.0,0.38504811]
[1680438368600,0.00424919,28326.0,28324.0,0.38504811]
[1680438368800,0.05418919,28326.0,28324.0,0.3007]
[1680438369698,0.05018919,28326.0,28324.0,0.3027]
[1680438370099,0.05018919,28326.0,28324.0,0.002]
[1680438370304,0.05,28325.0,28316.0,0.10567505]
[1680438370597,0.3007,28317.0,28315.0,0.10567505]
[1680438370797,0.3007,28317.0,28311.0,0.12697653]
[1680438370798,0.05,28316.0,28314.0,0.15567505]
[1680438371202,0.3007,28317.0,28314.0,0.10567505]
[1680438371392,0.3007,28317.0,28316.0,0.001]
[1680438371800,0.3007,28317.0,28314.0,0.001]
[1680438371996,0.053,28316.0,28314.0,0.001]
[1680438372195,0.05,28316.0,28312.0,0.15567505]
[1680438372598,0.3007,28314.0,28310.0,0.15567505]
[1680438372904,0.05,28313.0,28310.0,0.05]
[1680438373404,0.3007,28314.0,28310.0,0.05]
[1680438374905,0.3037,28314.0,28310.0,0.051]
[1680438376406,0.00059443,28313.0,28310.0,0.051]
[1680438377407,0.00359443,28313.0,28310.0,0.051]
[1680438378107,0.00359443,28313.0,28310.0,0.001]
[1680438378510,0.05359443,28313.0,28310.0,0.001]
[1680438378710,0.00359443,28313.0,28310.0,0.001]
[1680438379419,0.00359443,28313.0,28310.0,0.051]
[1680438383107,0.00359443,28313.0,28310.0,0.001]
[1680438387217,0.00359443,28313.0,28310.0,0.051]
[1680438391512,0.00359443,28313.0,28312.0,0.3007]
[1680438392014,0.3007,28320.0,28312.0,0.3007]
[1680438392316,0.3007,28320.0,28315.0,0.3007]
[1680438392506,0.00040735,28319.0,28316.0,0.05]
[1680438393306,0.00440735,28319.0,28316.0,0.05]
[1680438395212,0.3007,28327.0,28318.0,0.7007]
[1680438395412,0.3007,28327.0,28321.0,0.3007]
[1680438395614,0.3007,28327.0,28322.0,0.05]
[1680438397419,0.3107,28327.0,28322.0,0.05]
[1680438398117,0.3037,28327.0,28322.0,0.05]
[1680438398720,0.3107,28327.0,28322.0,0.051]
[1680438399017,0.3107,28327.0,28322.0,0.001]
[1680438399212,0.3007,28327.0,28322.0,0.05]
[1680438399412,0.3037,28327.0,28321.0,0.3007]
[1680438399616,0.3037,28327.0,28322.0,0.05]
[1680438400518,0.3107,28327.0,28324.0,0.3007]
[1680438400716,0.3007,28327.0,28325.0,0.05]
[1680438400912,0.3037,28327.0,28325.0,0.05]
[1680438401313,0.3037,28327.0,28324.0,0.3007]
[1680438403014,0.3007,28327.0,28324.0,0.3007]
[1680438403215,0.3037,28327.0,28324.0,0.3007]
[1680438404227,0.05,28326.0,28324.0,0.3007]
[1680438405021,0.05,28326.0,28324.0,0.3047]
[1680438405224,0.3007,28327.0,28324.0,0.3047]
[1680438405420,0.05,28326.0,28324.0,0.3047]
[1680438406316,0.05,28326.0,28324.0,0.004]
[1680438406715,0.05,28326.0,28321.0,0.3007]
[1680438407114,0.06,28326.0,28324.0,0.001]
[1680438407925,0.05,28326.0,28322.0,0.05]
[1680438408126,0.05,28326.0,28321.0,0.3047]
[1680438408522,0.05,28326.0,28321.0,0.004]
[1680438408827,0.3007,28324.0,28321.0,0.004]
[1680438409015,0.05,28323.0,28321.0,0.004]
[1680438409519,0.05,28323.0,28317.0,0.3007]
[1680438409918,0.06,28323.0,28321.0,0.001]
[1680438410422,0.06,28323.0,28318.0,0.05]
[1680438410924,0.066,28323.0,28321.0,0.001]
[1680438412624,0.05,28323.0,28318.0,0.05]
[1680438412828,0.016,28323.0,28318.0,0.051]
[1680438413025,0.05,28323.0,28318.0,0.05]
[1680438413220,0.066,28323.0,28321.0,0.001]
[1680438413624,0.05,28323.0,28318.0,0.051]
[1680438413830,0.066,28323.0,28318.0,0.051]
[1680438414232,0.06,28323.0,28321.0,0.001]
[1680438414430,0.01,28323.0,28321.0,0.001]
[1680438415626,0.003,28323.0,28321.0,0.05]
[1680438416224,0.05,28326.0,28321.0,0.054]
[1680438417031,0.3007,28327.0,28321.0,0.05]
[1680438417229,0.016,28326.0,28323.0,0.3007]
[1680438417531,0.016,28326.0,28324.0,0.05]
[1680438419439,0.016,28326.0,28324.0,0.051]
[1680438419834,0.05,28329.0,28324.0,0.05]
[1680438420031,0.003,28326.0,28324.0,0.05]
[1680438420433,0.001,28326.0,28324.0,0.059]
[1680438421433,0.002,28326.0,28324.0,0.059]
[1680438421844,0.002,28326.0,28324.0,0.009]
[1680438422842,0.052,28326.0,28324.0,0.009]
[1680438430044,0.052,28326.0,28324.0,0.00906]
[1680438434543,0.077,28326.0,28324.0,0.00106]
[1680438435050,0.066,28326.0,28324.0,0.00106]
[1680438437742,0.066,28326.0,28317.0,0.3007]
[1680438437743,0.403,28325.0,28315.0,0.1898774]
[1680438437950,0.3007,28319.0,28314.0,0.08420235]
[1680438438151,0.3007,28319.0,28314.0,0.43490235]
[1680438438455,0.3007,28319.0,28315.0,0.05]
[1680438439051,0.3037,28319.0,28315.0,0.05]
[1680438439353,0.3037,28319.0,28315.0,0.13420235]
[1680438439741,0.3037,28319.0,28315.0,0.14120235]
[1680438439943,0.3037,28319.0,28315.0,0.057]
[1680438440651,0.05,28318.0,28315.0,0.007]
[1680438441053,6.236e-05,28317.0,28315.0,0.054]
[1680438441453,0.3007,28320.0,28315.0,0.054]
[1680438441957,0.05,28319.0,28315.0,0.054]
[1680438442254,0.002,28317.0,28315.0,0.057]
[1680438442452,0.05,28319.0,28315.0,0.05]
[1680438443254,0.05,28319.0,28313.0,0.13420235]
[1680438443856,0.05,28319.0,28315.0,0.004]
[1680438444355,0.05,28319.0,28314.0,0.05]
[1680438444748,0.05,28319.0,28315.0,0.004]
[1680438445253,0.05,28319.0,28314.0,0.054]
[1680438445648,0.3007,28320.0,28314.0,0.054]
[1680438446456,0.003,28319.0,28314.0,0.05]
[1680438446750,0.053,28319.0,28314.0,0.05]
[1680438446950,0.05,28319.0,28314.0,0.05]
[1680438447455,0.05,28319.0,28314.0,0.054]
[1680438448658,0.3007,28320.0,28314.0,0.054]
[1680438449357,0.05,28319.0,28314.0,0.054]
[1680438449851,0.053,28319.0,28312.0,0.13420235]
[1680438450250,0.05,28319.0,28314.0,0.004]
[1680438450757,0.053,28319.0,28312.0,0.13420235]
[1680438451353,0.3007,28317.0,28312.0,0.13420235]
[1680438453045,0.3017,28317.0,28312.0,0.14120235]
[1680438454558,9.353e-05,28316.0,28312.0,0.057]
[1680438454759,0.05009353,28316.0,28312.0,0.057]
[1680438455163,0.05009353,28316.0,28312.0,0.007]
[1680438455164,9.353e-05,28316.0,28312.0,0.007]
[1680438455366,0.3007,28314.0,28312.0,0.007]
[1680438455856,0.05,28313.0,28312.0,0.007]
[1680438456061,0.3007,28314.0,28312.0,0.007]
[1680438456249,0.05,28313.0,28312.0,0.007]
[1680438456455,0.05018708,28313.0,28312.0,0.007]
[1680438456760,0.00018708,28313.0,28312.0,0.3077]
[1680438457157,0.003,28314.0,28312.0,0.3077]
[1680438457463,0.003,28314.0,28313.0,0.05]
[1680438458361,0.05,28319.0,28313.0,0.05]
[1680438458764,0.003,28314.0,28313.0,0.057]
[1680438459160,0.0031559,28314.0,28313.0,0.057]
[1680438459365,0.0001559,28314.0,28313.0,0.054]
[1680438459759,0.003,28314.0,28313.0,0.057]
[1680438460561,0.003,28314.0,28313.0,0.007]
[1680438462668,0.05,28316.0,28311.0,0.05]
[1680438462870,0.003,28314.0,28313.0,0.007]
[1680438470973,0.3037,28314.0,28313.0,0.007]
[1680438471574,0.3038559,28314.0,28313.0,0.007]
[1680438474786,0.0031559,28314.0,28313.0,0.007]
[1680438478594,0.3038559,28314.0,28313.0,0.007]
[1680438482694,0.3038559,28314.0,28313.0,0.00691351]
[1680438483893,0.05,28313.0,28306.0,0.3304]
[1680438484093,0.05,28313.0,28305.0,0.08420235]
[1680438484094,0.3007,28309.0,28305.0,0.08420235]
[1680438484295,0.05,28308.0,28305.0,0.08420235]
[1680438484987,0.3007,28309.0,28305.0,0.08420235]
[1680438485387,0.3007,28309.0,28306.0,0.001]
[1680438485593,0.3007,28309.0,28306.0,0.051]
[1680438485793,0.003,28308.0,28306.0,0.05]
[1680438486190,0.00037424,28307.0,28306.0,0.05]
[1680438486702,0.00037424,28307.0,28306.0,0.051]
[1680438487195,0.3037,28309.0,28306.0,0.051]
[1680438487998,0.003,28307.0,28306.0,0.051]
[1680438488398,0.3037,28309.0,28306.0,0.051]
[1680438488895,0.3007,28309.0,28306.0,0.05]
[1680438489101,0.003,28307.0,28306.0,0.051]
[1680438489397,0.3037,28309.0,28306.0,0.051]